[Event "Polofinale MCR junioru 2023"]
[Site "Czech Republic"]
[Date "2023.11.11"]
[Round "1.27"]
[White "Jasso, Matej"]
[Black "Nespurek, Jakub"]
[Result "1-0"]
[TimeControl "90 min per 40 moves + 15 min + 30 sec / move from move 1"]
[WhiteFideId "23710748"]
[BlackFideId "391816"]
[WhiteElo "2033"]
[BlackElo "1680"]

1. e4 {[%clk 01:30:54]} {[%emt 00:00:05]} g6 {[%clk 01:30:03]} {[%emt
00:00:58]} 2. d4 {[%clk 01:30:39]} {[%emt 00:00:45]} d6 {[%clk 01:30:07]}
{[%emt 00:00:27]} 3. Nc3 {[%clk 01:30:31]} {[%emt 00:00:38]} Bg7 {[%clk
01:29:36]} {[%emt 00:01:01]} 4. f4 {[%clk 01:30:30]} {[%emt 00:00:30]} Nd7
{[%clk 01:29:01]} {[%emt 00:01:06]} 5. Nf3 {[%clk 01:30:36]} {[%emt 00:00:24]}
c5 {[%clk 01:27:52]} {[%emt 00:01:40]} 6. Be3 {[%clk 01:30:11]} {[%emt
00:00:55]} Ngf6 {[%clk 01:27:14]} {[%emt 00:01:08]} 7. dxc5 {[%clk 01:30:25]}
{[%emt 00:00:17]} dxc5 {[%clk 01:26:27]} {[%emt 00:01:17]} 8. e5 {[%clk
01:28:44]} {[%emt 00:02:10]} Ng4 {[%clk 01:24:10]} {[%emt 00:02:47]} 9. Bg1
{[%clk 01:28:20]} {[%emt 00:00:54]} O-O {[%clk 01:04:32]} {[%emt 00:20:08]} 10.
Qd2 {[%clk 01:26:42]} {[%emt 00:02:08]} a6 {[%clk 00:43:41]} {[%emt 00:21:22]}
11. O-O-O {[%clk 01:23:39]} {[%emt 00:03:31]} Qa5 {[%clk 00:34:09]} {[%emt
00:10:03]} 12. Kb1 {[%clk 01:11:02]} {[%emt 00:13:07]} b5 {[%clk 00:26:12]}
{[%emt 00:08:26]} 13. Nd5 {[%clk 01:04:03]} {[%emt 00:07:29]} b4 {[%clk
00:24:50]} {[%emt 00:01:53]} 14. Nxe7+ {[%clk 01:03:52]} {[%emt 00:00:40]} Kh8
{[%clk 00:25:10]} {[%emt 00:00:10]} 15. Nxc8 {[%clk 01:04:06]} {[%emt
00:00:17]} Raxc8 {[%clk 00:25:15]} {[%emt 00:00:25]} 16. Ng5 {[%clk 01:00:53]}
{[%emt 00:03:43]} Nb6 {[%clk 00:23:38]} {[%emt 00:02:07]} 17. Qe2 {[%clk
00:59:00]} {[%emt 00:02:22]} Ra8 {[%emt 00:07:29]} 18. Qxg4 {[%clk 00:58:11]}
{[%emt 00:01:17]} Na4 {[%clk 00:16:46]} {[%emt 00:00:25]} 19. Bc4 {[%clk
00:42:16]} {[%emt 00:16:25]} Nc3+ {[%clk 00:15:14]} {[%emt 00:02:01]} 20. Ka1
{[%clk 00:39:28]} {[%emt 00:03:18]} Nxd1 {[%clk 00:14:48]} {[%emt 00:00:56]} 21.
Qxd1 {[%clk 00:39:11]} {[%emt 00:00:46]} Rad8 {[%clk 00:14:56]} {[%emt
00:00:23]} 22. Qc1 {[%clk 00:38:23]} {[%emt 00:01:18]} Rd7 {[%clk 00:08:55]}
{[%emt 00:06:30]} 23. Be3 {[%clk 00:35:59]} {[%emt 00:02:53]} h6 {[%clk
00:07:34]} {[%emt 00:01:52]} 24. Ne4 {[%clk 00:34:10]} {[%emt 00:02:19]} Rc8
{[%clk 00:06:41]} {[%emt 00:01:23]} 25. Nd6 {[%clk 00:26:33]} {[%emt 00:08:07]}
Rcc7 {[%clk 00:04:21]} {[%emt 00:02:49]} 26. Rd1 {[%clk 00:25:01]} {[%emt
00:02:01]} Bf8 {[%clk 00:03:32]} {[%emt 00:01:20]} 27. Nxf7+ {[%clk 00:24:04]}
{[%emt 00:01:28]} Rxf7 {[%clk 00:03:48]} {[%emt 00:00:14]} 28. Bxf7 {[%clk
00:24:24]} {[%emt 00:00:10]} Rxf7 {[%clk 00:04:12]} {[%emt 00:00:05]} 29. Qd2
{[%clk 00:24:44]} {[%emt 00:00:11]} Kg7 {[%clk 00:03:22]} {[%emt 00:01:20]} 30.
Qd5 {[%clk 00:21:49]} {[%emt 00:03:25]} Qa4 {[%clk 00:02:47]} {[%emt 00:01:05]}
31. e6 {[%clk 00:20:13]} {[%emt 00:02:05]} Re7 {[%clk 00:02:36]} {[%emt
00:00:41]} 32. Bxc5 {[%clk 00:18:54]} {[%emt 00:01:49]} Qxc2 {[%clk 00:02:32]}
{[%emt 00:00:32]} 33. f5 {[%clk 00:08:38]} {[%emt 00:10:47]} Rc7 {[%clk
00:01:50]} {[%emt 00:01:12]} 34. Bxf8+ {[%clk 00:08:26]} {[%emt 00:00:41]} Kxf8
{[%clk 00:02:05]} {[%emt 00:00:15]} 35. Qd8+ {[%clk 00:08:44]} {[%emt
00:00:13]} Kg7 {[%clk 00:02:04]} {[%emt 00:00:31]} 36. f6+ {[%clk 00:08:54]}
{[%emt 00:00:20]} Kh7 {[%clk 00:02:09]} {[%emt 00:00:25]} 37. Rd7+ {[%clk
00:09:19]} {[%emt 00:00:05]} Rxd7 {[%clk 00:02:29]} {[%emt 00:00:09]} 38. Qxd7+
{[%clk 00:09:43]} {[%emt 00:00:06]} Kh8 {[%clk 00:02:53]} {[%emt 00:00:06]} 39.
Qg7# {[%clk 00:10:05]} {[%emt 00:00:09]} 1-0

[Event "Polofinale MCR junioru 2023"]
[Site "Czech Republic"]
[Date "2023.11.11"]
[Round "1.28"]
[White "Urbansky, Stepan"]
[Black "Mametev, Artem"]
[Result "0-1"]
[TimeControl "90 min per 40 moves + 15 min + 30 sec / move from move 1"]
[WhiteFideId "23761741"]
[BlackFideId "23710195"]
[WhiteElo "1675"]
[BlackElo "2024"]

1. e4 {[%clk 01:30:56]} {[%emt 00:00:03]} c5 {[%clk 01:26:57]} {[%emt
00:04:04]} 2. Nf3 {[%clk 01:31:15]} {[%emt 00:00:11]} d6 {[%clk 01:27:23]}
{[%emt 00:00:04]} 3. d4 {[%clk 01:31:14]} {[%emt 00:00:28]} cxd4 {[%clk
01:27:19]} {[%emt 00:00:36]} 4. Nxd4 {[%clk 01:31:36]} {[%emt 00:00:09]} Nf6
{[%clk 01:27:46]} {[%emt 00:00:04]} 5. Nc3 {[%clk 01:31:52]} {[%emt 00:00:13]}
Nc6 {[%clk 01:28:03]} {[%emt 00:00:13]} 6. Bg5 {[%clk 01:31:13]} {[%emt
00:01:09]} e6 {[%clk 01:28:21]} {[%emt 00:00:13]} 7. Bc4 {[%clk 01:28:08]}
{[%emt 00:03:34]} Be7 {[%clk 01:19:21]} {[%emt 00:09:30]} 8. Qd2 {[%clk
01:27:11]} {[%emt 00:01:27]} h6 {[%clk 01:16:26]} {[%emt 00:03:25]} 9. Bxf6
{[%clk 01:21:48]} {[%emt 00:05:53]} gxf6 {[%clk 01:12:57]} {[%emt 00:03:59]} 10.
O-O-O {[%clk 01:17:05]} {[%emt 00:05:11]} a6 {[%clk 01:13:19]} {[%emt
00:00:10]} 11. Kb1 {[%clk 01:07:13]} {[%emt 00:10:21]} Qb6 {[%clk 01:12:40]}
{[%emt 00:01:09]} 12. f4 {[%clk 01:01:32]} {[%emt 00:06:11]} Qxd4 {[%clk
01:12:24]} {[%emt 00:00:47]} 13. Qxd4 {[%clk 01:01:26]} {[%emt 00:00:36]} Nxd4
{[%clk 01:12:49]} {[%emt 00:00:05]} 14. Rxd4 {[%clk 01:01:50]} {[%emt
00:00:07]} Bd7 {[%clk 01:12:54]} {[%emt 00:00:24]} 15. f5 {[%clk 00:53:55]}
{[%emt 00:08:25]} O-O-O {[%clk 01:12:34]} {[%emt 00:00:51]} 16. Bb3 {[%clk
00:45:45]} {[%emt 00:08:41]} Rdg8 {[%clk 01:09:38]} {[%emt 00:03:25]} 17. Rd2
{[%clk 00:41:34]} {[%emt 00:04:40]} h5 {[%clk 01:09:03]} {[%emt 00:01:05]} 18.
Na4 {[%clk 00:36:10]} {[%emt 00:05:54]} Kc7 {[%clk 01:07:47]} {[%emt 00:01:47]}
19. Rhd1 {[%clk 00:30:26]} {[%emt 00:06:14]} Bc8 {[%clk 01:06:17]} {[%emt
00:02:00]} 20. g3 {[%clk 00:26:10]} {[%emt 00:04:46]} h4 {[%clk 01:04:34]}
{[%emt 00:02:13]} 21. Rd3 {[%clk 00:22:29]} {[%emt 00:04:10]} b5 {[%clk
01:02:25]} {[%emt 00:02:39]} 22. Nc3 {[%clk 00:21:48]} {[%emt 00:01:11]} Rg4
{[%clk 01:00:52]} {[%emt 00:02:04]} 23. Rd4 {[%clk 00:19:08]} {[%emt 00:03:10]}
hxg3 {[%clk 00:59:58]} {[%emt 00:01:24]} 24. hxg3 {[%clk 00:19:03]} {[%emt
00:00:35]} Rxg3 {[%clk 00:57:47]} {[%emt 00:02:42]} 25. a4 {[%clk 00:18:55]}
{[%emt 00:00:38]} Bd7 {[%clk 00:57:29]} {[%emt 00:00:47]} 26. axb5 {[%clk
00:13:29]} {[%emt 00:05:57]} axb5 {[%clk 00:57:58]} {[%emt 00:00:01]} 27. Ne2
{[%clk 00:12:29]} {[%emt 00:01:29]} Rg4 {[%clk 00:56:09]} {[%emt 00:02:19]} 28.
c3 {[%clk 00:08:49]} {[%emt 00:04:11]} Rh2 {[%clk 00:55:36]} {[%emt 00:01:02]}
29. Nc1 {[%clk 00:08:16]} {[%emt 00:01:03]} e5 {[%clk 00:41:05]} {[%emt
00:15:00]} 30. Rb4 {[%clk 00:06:38]} {[%emt 00:02:08]} d5 {[%clk 00:40:40]}
{[%emt 00:00:56]} 31. Bxd5 {[%clk 00:06:59]} {[%emt 00:00:08]} Bxb4 {[%clk
00:41:05]} {[%emt 00:00:05]} 32. cxb4 {[%clk 00:07:23]} {[%emt 00:00:07]} Bc6
{[%clk 00:40:26]} {[%emt 00:01:08]} 33. Nb3 {[%clk 00:06:09]} {[%emt 00:01:44]}
Bxd5 {[%clk 00:40:47]} {[%emt 00:00:09]} 34. Rxd5 {[%clk 00:05:43]} {[%emt
00:00:56]} Rgg2 {[%clk 00:40:58]} {[%emt 00:00:19]} 0-1

[Event "Polofinale MCR junioru 2023"]
[Site "Czech Republic"]
[Date "2023.11.11"]
[Round "1.29"]
[White "Tillman, Stanislav"]
[Black "Zezula, Matej"]
[Result "1-0"]
[TimeControl "90 min per 40 moves + 15 min + 30 sec / move from move 1"]
[WhiteFideId "23714247"]
[BlackFideId "23725796"]
[WhiteElo "2021"]
[BlackElo "1666"]

1. e4 {[%clk 01:30:57]} {[%emt 00:00:02]} c5 {[%clk 01:30:47]} {[%emt
00:00:13]} 2. Nf3 {[%clk 01:31:19]} {[%emt 00:00:07]} d6 {[%clk 01:30:56]}
{[%emt 00:00:22]} 3. d4 {[%clk 01:27:47]} {[%emt 00:04:02]} cxd4 {[%clk
01:31:17]} {[%emt 00:00:09]} 4. Nxd4 {[%clk 01:28:09]} {[%emt 00:00:08]} Nf6
{[%clk 01:31:37]} {[%emt 00:00:10]} 5. Nc3 {[%clk 01:27:48]} {[%emt 00:00:51]}
g6 {[%clk 01:31:24]} {[%emt 00:00:43]} 6. Be2 {[%clk 01:27:46]} {[%emt
00:00:31]} Bg7 {[%clk 01:31:25]} {[%emt 00:00:30]} 7. O-O {[%clk 01:27:44]}
{[%emt 00:00:32]} O-O {[%clk 01:31:16]} {[%emt 00:00:39]} 8. Be3 {[%clk
01:25:26]} {[%emt 00:02:48]} Nc6 {[%clk 01:28:24]} {[%emt 00:03:22]} 9. Nb3
{[%clk 01:15:40]} {[%emt 00:10:15]} Be6 {[%clk 01:11:49]} {[%emt 00:17:05]} 10.
f4 {[%clk 01:12:19]} {[%emt 00:03:52]} Qc8 {[%clk 01:08:33]} {[%emt 00:03:47]}
11. h3 {[%clk 01:07:47]} {[%emt 00:05:01]} Rd8 {[%clk 00:56:31]} {[%emt
00:12:32]} 12. Bf3 {[%clk 01:05:41]} {[%emt 00:02:36]} Bc4 {[%clk 00:54:49]}
{[%emt 00:02:12]} 13. Be2 {[%clk 00:51:01]} {[%emt 00:15:11]} Be6 {[%clk
00:50:32]} {[%emt 00:04:46]} 14. Qe1 {[%clk 00:48:11]} {[%emt 00:03:19]} d5
{[%clk 00:43:01]} {[%emt 00:08:01]} 15. e5 {[%clk 00:42:39]} {[%emt 00:06:02]}
d4 {[%clk 00:41:04]} {[%emt 00:02:28]} 16. exf6 {[%clk 00:42:10]} {[%emt
00:00:58]} exf6 {[%clk 00:40:47]} {[%emt 00:00:47]} 17. Bd2 {[%clk 00:41:02]}
{[%emt 00:01:38]} dxc3 {[%clk 00:39:37]} {[%emt 00:01:40]} 18. Bxc3 {[%clk
00:41:24]} {[%emt 00:00:07]} Re8 {[%clk 00:37:56]} {[%emt 00:02:12]} 19. Qf2
{[%clk 00:39:47]} {[%emt 00:02:06]} Qc7 {[%clk 00:34:21]} {[%emt 00:04:06]} 20.
Rad1 {[%clk 00:38:57]} {[%emt 00:01:20]} Rac8 {[%clk 00:30:43]} {[%emt
00:04:09]} 21. Nc5 {[%clk 00:31:10]} {[%emt 00:08:17]} Ne7 {[%clk 00:27:16]}
{[%emt 00:03:56]} 22. Nxe6 {[%clk 00:27:29]} {[%emt 00:04:12]} fxe6 {[%clk
00:27:36]} {[%emt 00:00:10]} 23. Bf3 {[%clk 00:24:33]} {[%emt 00:03:25]} a6
{[%clk 00:26:04]} {[%emt 00:02:03]} 24. a4 {[%clk 00:22:15]} {[%emt 00:02:48]}
Nf5 {[%clk 00:23:10]} {[%emt 00:03:23]} 25. a5 {[%clk 00:21:12]} {[%emt
00:01:33]} Nd6 {[%clk 00:21:41]} {[%emt 00:01:59]} 26. Rfe1 {[%clk 00:13:32]}
{[%emt 00:08:10]} Nb5 {[%clk 00:18:15]} {[%emt 00:03:56]} 27. Bd2 {[%clk
00:11:15]} {[%emt 00:02:48]} f5 {[%clk 00:09:06]} {[%emt 00:09:40]} 28. c3
{[%clk 00:09:24]} {[%emt 00:02:20]} Nd6 {[%clk 00:08:45]} {[%emt 00:00:50]} 29.
Qb6 {[%clk 00:07:15]} {[%emt 00:02:40]} Nc4 {[%clk 00:06:06]} {[%emt 00:03:09]}
30. Qxb7 {[%clk 00:06:17]} {[%emt 00:01:28]} Qc5+ {[%clk 00:04:38]} {[%emt
00:01:57]} 31. Kh1 {[%clk 00:06:12]} {[%emt 00:00:36]} Qxa5 {[%clk 00:03:19]}
{[%emt 00:01:50]} 32. Rxe6 {[%clk 00:05:38]} {[%emt 00:01:04]} Red8 {[%clk
00:02:18]} {[%emt 00:01:31]} 33. Re7 {[%clk 00:04:52]} {[%emt 00:01:16]} Bf6
{[%clk 00:02:07]} {[%emt 00:00:40]} 34. Rxh7 {[%clk 00:05:07]} {[%emt
00:00:14]} Nd6 {[%clk 00:01:54]} {[%emt 00:00:43]} 35. Bd5+ {[%clk 00:03:54]}
{[%emt 00:01:43]} Qxd5 {[%clk 00:01:32]} {[%emt 00:00:53]} 36. Qxd5+ {[%clk
00:04:12]} {[%emt 00:00:12]} Kxh7 {[%clk 00:01:56]} {[%emt 00:00:05]} 37. Be3
{[%clk 00:03:40]} {[%emt 00:01:02]} Kh6 {[%clk 00:00:49]} {[%emt 00:01:37]} 38.
Bb6 {[%clk 00:00:33]} {[%emt 00:03:38]} Ne4 {[%clk 00:00:32]} {[%emt 00:00:47]}
39. Bxd8 {[%clk 00:00:44]} {[%emt 00:00:19]} Nf2+ {[%clk 00:00:32]} {[%emt
00:00:30]} 40. Kh2 {[%clk 00:00:55]} {[%emt 00:00:17]} Rxd8 {[%clk 00:00:43]}
{[%emt 00:00:21]} 41. Qxd8 {[%clk 00:01:16]} {[%emt 00:00:09]} Bxd8 {[%clk
00:01:09]} {[%emt 00:00:04]} 42. Rxd8 {[%clk 00:01:39]} {[%emt 00:00:06]} 1-0

[Event "Polofinale MCR junioru 2023"]
[Site "Czech Republic"]
[Date "2023.11.11"]
[Round "1.30"]
[White "Sadil, Antonin"]
[Black "Rousek, Jan"]
[Result "0-1"]
[TimeControl "90 min per 40 moves + 15 min + 30 sec / move from move 1"]
[WhiteFideId "23735597"]
[BlackFideId "386669"]
[WhiteElo "1648"]
[BlackElo "2006"]

1. e4 {[%clk 01:30:49]} {[%emt 00:00:09]} c5 {[%clk 01:30:40]} {[%emt
00:00:20]} 2. Nf3 {[%clk 01:30:55]} {[%emt 00:00:25]} e6 {[%clk 01:30:52]}
{[%emt 00:00:16]} 3. d4 {[%clk 01:31:11]} {[%emt 00:00:15]} cxd4 {[%clk
01:31:16]} {[%emt 00:00:06]} 4. Nxd4 {[%clk 01:31:29]} {[%emt 00:00:13]} Nf6
{[%clk 01:31:35]} {[%emt 00:00:10]} 5. Nc3 {[%clk 01:31:44]} {[%emt 00:00:16]}
Nc6 {[%clk 01:31:54]} {[%emt 00:00:09]} 6. Ndb5 {[%clk 01:31:50]} {[%emt
00:00:26]} d6 {[%clk 01:28:48]} {[%emt 00:03:35]} 7. Bf4 {[%clk 01:31:20]}
{[%emt 00:01:01]} e5 {[%clk 01:16:27]} {[%emt 00:12:51]} 8. Bg5 {[%clk
01:31:14]} {[%emt 00:00:36]} a6 {[%clk 01:13:51]} {[%emt 00:03:06]} 9. Na3
{[%clk 01:28:47]} {[%emt 00:02:57]} Be7 {[%clk 01:01:32]} {[%emt 00:12:48]} 10.
Bxf6 {[%clk 01:23:48]} {[%emt 00:05:29]} Bxf6 {[%clk 01:00:55]} {[%emt
00:01:06]} 11. Nd5 {[%clk 01:23:44]} {[%emt 00:00:35]} b5 {[%clk 00:55:34]}
{[%emt 00:05:50]} 12. Nxf6+ {[%clk 01:20:54]} {[%emt 00:03:21]} Qxf6 {[%clk
00:55:39]} {[%emt 00:00:24]} 13. c3 {[%clk 01:10:22]} {[%emt 00:11:03]} O-O
{[%clk 00:54:05]} {[%emt 00:02:01]} 14. Be2 {[%clk 01:07:43]} {[%emt 00:03:11]}
Bb7 {[%clk 00:50:52]} {[%emt 00:03:40]} 15. Nc2 {[%clk 01:04:51]} {[%emt
00:03:25]} Ne7 {[%clk 00:46:48]} {[%emt 00:04:32]} 16. Bf3 {[%clk 01:03:34]}
{[%emt 00:01:49]} Rad8 {[%clk 00:43:29]} {[%emt 00:03:48]} 17. Ne3 {[%clk
01:01:51]} {[%emt 00:02:15]} Qg6 {[%clk 00:40:17]} {[%emt 00:03:41]} 18. Nf5
{[%clk 00:57:43]} {[%emt 00:04:38]} Rfe8 {[%clk 00:31:45]} {[%emt 00:09:02]} 19.
Qd2 {[%clk 00:49:11]} {[%emt 00:09:02]} d5 {[%clk 00:28:16]} {[%emt 00:03:59]}
20. Nxe7+ {[%clk 00:47:55]} {[%emt 00:01:47]} Rxe7 {[%clk 00:28:15]} {[%emt
00:00:29]} 21. O-O-O {[%clk 00:43:36]} {[%emt 00:04:51]} d4 {[%clk 00:26:05]}
{[%emt 00:02:39]} 22. Qe2 {[%clk 00:41:34]} {[%emt 00:02:32]} Rc8 {[%clk
00:25:02]} {[%emt 00:01:32]} 23. Rd3 {[%clk 00:40:15]} {[%emt 00:01:50]} Rec7
{[%clk 00:23:15]} {[%emt 00:02:16]} 24. Rhd1 {[%clk 00:38:40]} {[%emt
00:02:06]} b4 {[%clk 00:17:24]} {[%emt 00:06:22]} 25. Bg4 {[%clk 00:37:21]}
{[%emt 00:01:48]} Bxe4 {[%clk 00:10:42]} {[%emt 00:07:12]} 26. Bxc8 {[%clk
00:37:09]} {[%emt 00:00:43]} Bxd3 {[%clk 00:10:46]} {[%emt 00:00:25]} 27. Qxe5
{[%clk 00:35:13]} {[%emt 00:02:26]} Rxc8 {[%clk 00:07:13]} {[%emt 00:04:03]} 28.
Qxd4 {[%clk 00:34:53]} {[%emt 00:00:50]} bxc3 {[%clk 00:02:36]} {[%emt
00:05:07]} 29. bxc3 {[%clk 00:33:59]} {[%emt 00:01:24]} Qxg2 {[%clk 00:00:59]}
{[%emt 00:02:06]} 30. Rxd3 {[%clk 00:33:48]} {[%emt 00:00:41]} Qg5+ {[%clk
00:00:53]} {[%emt 00:00:35]} 31. f4 {[%clk 00:32:46]} {[%emt 00:01:34]} Qe7
{[%clk 00:01:14]} {[%emt 00:00:07]} 32. Kc2 {[%clk 00:29:38]} {[%emt 00:03:39]}
h6 {[%clk 00:01:27]} {[%emt 00:00:18]} 33. Qd7 {[%clk 00:22:28]} {[%emt
00:07:40]} Qe2+ {[%clk 00:01:36]} {[%emt 00:00:19]} 34. Rd2 {[%clk 00:22:03]}
{[%emt 00:00:55]} Qe4+ {[%clk 00:01:54]} {[%emt 00:00:13]} 35. Rd3 {[%clk
00:21:51]} {[%emt 00:00:42]} Rb8 {[%clk 00:01:47]} {[%emt 00:00:33]} 36. Qd4
{[%clk 00:20:55]} {[%emt 00:01:31]} Qe2+ {[%clk 00:00:53]} {[%emt 00:01:21]} 37.
Rd2 {[%clk 00:20:53]} {[%emt 00:00:35]} Qb5 {[%clk 00:01:07]} {[%emt 00:00:15]}
38. c4 {[%clk 00:18:49]} {[%emt 00:02:35]} Qb1+ {[%clk 00:00:54]} {[%emt
00:00:38]} 39. Kc3 {[%clk 00:19:01]} {[%emt 00:00:22]} Qa1+ {[%clk 00:00:38]}
{[%emt 00:00:45]} 40. Kd3 {[%clk 00:18:51]} {[%emt 00:00:41]} Qf1+ {[%clk
00:00:53]} {[%emt 00:00:13]} 41. Kc2 {[%clk 00:15:39]} {[%emt 00:03:44]} Qb1+
{[%clk 00:07:22]} {[%emt 00:09:29]} 42. Kc3 {[%clk 00:31:44]} {[%emt 00:00:28]}
Re8 {[%clk 00:07:19]} {[%emt 00:00:32]} 43. c5 {[%clk 00:23:42]} {[%emt
00:08:33]} Qc1+ {[%clk 00:06:51]} {[%emt 00:00:57]} 44. Kd3 {[%clk 00:22:15]}
{[%emt 00:01:58]} Qa3+ {[%clk 00:06:48]} {[%emt 00:00:27]} 45. Kc4 {[%clk
00:21:33]} {[%emt 00:01:17]} Rb8 {[%clk 00:03:11]} {[%emt 00:04:07]} 46. Qf2
{[%clk 00:16:24]} {[%emt 00:05:39]} Qb4+ {[%clk 00:02:52]} {[%emt 00:00:49]} 47.
Kd3 {[%clk 00:16:19]} {[%emt 00:00:36]} Rd8+ {[%clk 00:02:19]} {[%emt
00:01:01]} 48. Kc2 {[%clk 00:16:21]} {[%emt 00:00:30]} Rc8 {[%clk 00:02:45]}
{[%emt 00:00:04]} 49. Kd1 {[%clk 00:13:16]} {[%emt 00:03:35]} Rxc5 {[%clk
00:02:32]} {[%emt 00:00:43]} 50. Qe3 {[%clk 00:12:50]} {[%emt 00:00:55]} Qc4
{[%clk 00:01:42]} {[%emt 00:01:21]} 51. Rd8+ {[%clk 00:12:33]} {[%emt
00:00:47]} Kh7 {[%clk 00:02:03]} {[%emt 00:00:08]} 52. Qd3+ {[%clk 00:12:54]}
{[%emt 00:00:10]} Qxd3+ {[%clk 00:02:25]} {[%emt 00:00:08]} 53. Rxd3 {[%clk
00:13:05]} {[%emt 00:00:20]} Ra5 {[%clk 00:02:36]} {[%emt 00:00:18]} 54. a3
{[%clk 00:13:12]} {[%emt 00:00:24]} Ra4 {[%clk 00:01:25]} {[%emt 00:01:40]} 55.
Rf3 {[%clk 00:13:28]} {[%emt 00:00:15]} Kg6 {[%clk 00:01:45]} {[%emt 00:00:09]}
56. Rg3+ {[%clk 00:12:58]} {[%emt 00:01:01]} Kf6 {[%clk 00:02:00]} {[%emt
00:00:12]} 57. Rf3 {[%clk 00:12:43]} {[%emt 00:00:47]} Kf5 {[%clk 00:02:20]}
{[%emt 00:00:09]} 58. Rg3 {[%clk 00:12:47]} {[%emt 00:00:27]} g6 {[%clk
00:02:38]} {[%emt 00:00:11]} 59. Ke2 {[%clk 00:11:46]} {[%emt 00:01:32]} Rxf4
{[%clk 00:02:39]} {[%emt 00:00:28]} 60. Rc3 {[%clk 00:11:59]} {[%emt 00:00:18]}
Ra4 {[%clk 00:02:26]} {[%emt 00:00:37]} 61. Kf3 {[%clk 00:11:17]} {[%emt
00:01:18]} Kg5 {[%clk 00:02:19]} {[%emt 00:00:30]} 62. Kg3 {[%clk 00:11:17]}
{[%emt 00:00:36]} f5 {[%clk 00:02:25]} {[%emt 00:00:24]} 63. h3 {[%clk
00:11:03]} {[%emt 00:00:45]} Rd4 {[%clk 00:01:40]} {[%emt 00:01:13]} 64. Rf3
{[%clk 00:10:59]} {[%emt 00:00:35]} h5 {[%clk 00:00:57]} {[%emt 00:01:13]} 65.
Rb3 {[%clk 00:11:02]} {[%emt 00:00:29]} h4+ {[%clk 00:01:08]} {[%emt 00:00:18]}
66. Kf3 {[%clk 00:11:05]} {[%emt 00:00:26]} Rd2 {[%clk 00:01:28]} {[%emt
00:00:09]} 67. Rb6 {[%clk 00:10:16]} {[%emt 00:01:22]} Rd3+ {[%clk 00:01:49]}
{[%emt 00:00:08]} 68. Kg2 {[%clk 00:10:18]} {[%emt 00:00:28]} Rxa3 {[%clk
00:02:10]} {[%emt 00:00:07]} 69. Rc6 {[%clk 00:10:35]} {[%emt 00:00:15]} a5
{[%clk 00:01:59]} {[%emt 00:00:41]} 70. Ra6 {[%clk 00:10:55]} {[%emt 00:00:10]}
Ra2+ {[%clk 00:02:13]} {[%emt 00:00:15]} 71. Kh1 {[%clk 00:10:48]} {[%emt
00:00:38]} a4 {[%clk 00:02:08]} {[%emt 00:00:35]} 72. Kg1 {[%clk 00:11:08]}
{[%emt 00:00:10]} a3 {[%clk 00:02:18]} {[%emt 00:00:18]} 73. Kh1 {[%clk
00:11:23]} {[%emt 00:00:17]} Kf4 {[%clk 00:02:02]} {[%emt 00:00:45]} 74. Rxg6
{[%clk 00:11:40]} {[%emt 00:00:14]} Rb2 {[%clk 00:02:25]} {[%emt 00:00:06]} 75.
Ra6 {[%clk 00:10:46]} {[%emt 00:01:25]} a2 {[%clk 00:02:38]} {[%emt 00:00:16]}
76. Ra4+ {[%clk 00:10:46]} {[%emt 00:00:30]} Kg5 {[%clk 00:02:44]} 0-1